[Event "*** Titled Tuesday Blitz"]
[Site "Chess.com"]
[Date "2021.04.27"]
[Round "5"]
[White "AEMEffi"]
[Black "Fraler15"]
[Result "0-1"]
[WhiteElo "2316"]
[BlackElo "2206"]
[TimeControl "180+1"]
[EndTime "10:56:43 PDT"]
[Termination "Fraler15 won by resignation"]

1. d4 {[%clk 0:02:58.1]} 1... d5 {[%clk 0:02:33.9]} 2. c4 {[%clk 0:02:58.6]}
2... e6 {[%clk 0:02:33]} 3. Nc3 {[%clk 0:02:59.1]} 3... Nf6 {[%clk 0:02:33.3]}
4. cxd5 {[%clk 0:02:58.3]} 4... exd5 {[%clk 0:02:33]} 5. Bg5 {[%clk 0:02:58.9]}
5... Bb4 {[%clk 0:02:29.6]} 6. Rc1 {[%clk 0:02:54.8]} 6... h6 {[%clk 0:02:25.1]}
7. Bxf6 {[%clk 0:02:51.6]} 7... Qxf6 {[%clk 0:02:25.3]} 8. a3 {[%clk 0:02:45.7]}
8... Bxc3+ {[%clk 0:02:20.1]} 9. Rxc3 {[%clk 0:02:46.6]} 9... c6 {[%clk
0:02:19.5]} 10. e3 {[%clk 0:02:46.4]} 10... Bf5 {[%clk 0:02:18.6]} 11. Qf3
{[%clk 0:02:40.6]} 11... Nd7 {[%clk 0:02:11.9]} 12. Nh3 {[%clk 0:02:31.4]} 12...
Be4 {[%clk 0:02:06.3]} 13. Qxf6 {[%clk 0:02:30.8]} 13... Nxf6 {[%clk 0:02:07.2]}
14. f3 {[%clk 0:02:28.2]} 14... Bg6 {[%clk 0:02:06.8]} 15. Nf4 {[%clk
0:02:26.5]} 15... Bh7 {[%clk 0:02:03.8]} 16. Bd3 {[%clk 0:02:23.2]} 16... Bxd3
{[%clk 0:02:02.7]} 17. Nxd3 {[%clk 0:02:22]} 17... O-O-O {[%clk 0:01:59]} 18.
Kd2 {[%clk 0:02:12.8]} 18... Rhe8 {[%clk 0:01:53.3]} 19. b4 {[%clk 0:02:10]}
19... Nd7 {[%clk 0:01:50.4]} 20. b5 {[%clk 0:01:54.4]} 20... Nb6 {[%clk
0:01:49.4]} 21. Ne5 {[%clk 0:01:54]} 21... f6 {[%clk 0:01:45.3]} 22. Ng6 {[%clk
0:01:34.8]} 22... Nc4+ {[%clk 0:01:42.6]} 23. Ke2 {[%clk 0:01:33.3]} 23... cxb5
{[%clk 0:01:42.1]} 24. Rb1 {[%clk 0:01:30.9]} 24... a6 {[%clk 0:01:33.5]} 25. h4
{[%clk 0:01:27.8]} 25... Kb8 {[%clk 0:01:29.6]} 26. h5 {[%clk 0:01:26.9]} 26...
Rd6 {[%clk 0:01:13.6]} 27. Nf4 {[%clk 0:01:26]} 27... Rd7 {[%clk 0:00:59.7]} 28.
g4 {[%clk 0:01:18.9]} 28... Kc7 {[%clk 0:00:43.8]} 29. a4 {[%clk 0:01:14.9]}
29... bxa4 {[%clk 0:00:37.6]} 30. Nxd5+ {[%clk 0:01:14.8]} 30... Rxd5 {[%clk
0:00:32.3]} 31. Rxc4+ {[%clk 0:01:15.3]} 31... Kb8 {[%clk 0:00:28.6]} 32. Rxa4
{[%clk 0:01:15.3]} 32... Re7 {[%clk 0:00:28.2]} 33. e4 {[%clk 0:01:13.5]} 33...
Rd6 {[%clk 0:00:27.4]} 34. d5 {[%clk 0:01:12.6]} 34... Ka7 {[%clk 0:00:26.4]}
35. Rc4 {[%clk 0:01:09.5]} 35... Rxd5 {[%clk 0:00:24]} 36. Ke3 {[%clk
0:01:04.4]} 36... Rd6 {[%clk 0:00:20.4]} 37. f4 {[%clk 0:01:02.7]} 37... Rb6
{[%clk 0:00:20.3]} 38. Rd1 {[%clk 0:01:00]} 38... Rb3+ {[%clk 0:00:19.6]} 39.
Kf2 {[%clk 0:00:54.8]} 39... b5 {[%clk 0:00:18.2]} 40. Rc6 {[%clk 0:00:43.8]}
40... Rb4 {[%clk 0:00:16]} 41. Rdd6 {[%clk 0:00:42.5]} 41... Ra4 {[%clk
0:00:15.9]} 42. Re6 {[%clk 0:00:40.7]} 42... Rxe6 {[%clk 0:00:15.6]} 43. Rxe6
{[%clk 0:00:40.5]} 43... b4 {[%clk 0:00:15.2]} 44. e5 {[%clk 0:00:23.7]} 44...
fxe5 {[%clk 0:00:14.5]} 45. Re7+ {[%clk 0:00:20.9]} 45... Kb6 {[%clk 0:00:13.8]}
46. Rxe5 {[%clk 0:00:20.4]} 46... b3 {[%clk 0:00:12.1]} 47. Re3 {[%clk
0:00:17.1]} 47... Rxf4+ {[%clk 0:00:10.4]} 48. Kg3 {[%clk 0:00:17]} 48... Rb4
{[%clk 0:00:09.8]} 49. Re6+ {[%clk 0:00:17.3]} 49... Ka5 {[%clk 0:00:09.5]} 50.
Re5+ {[%clk 0:00:18.2]} 50... Rb5 {[%clk 0:00:09.8]} 51. Re2 {[%clk 0:00:18.4]}
51... b2 {[%clk 0:00:09.8]} 52. Re1 {[%clk 0:00:18.9]} 52... b1=Q {[%clk
0:00:09.8]} 53. Rxb1 {[%clk 0:00:19.8]} 53... Rxb1 {[%clk 0:00:09.8]} 0-1

[Event "*** Titled Tuesday Blitz"]
[Site "Chess.com"]
[Date "2021.04.27"]
[Round "5"]
[White "levallem"]
[Black "Forantes"]
[Result "0-1"]
[WhiteElo "2267"]
[BlackElo "2497"]
[TimeControl "180+1"]
[EndTime "10:56:45 PDT"]
[Termination "Forantes won by resignation"]

1. e4 {[%clk 0:02:55.4]} 1... c5 {[%clk 0:02:58.1]} 2. Nf3 {[%clk 0:02:53.2]}
2... Nc6 {[%clk 0:02:57.8]} 3. d4 {[%clk 0:02:48]} 3... cxd4 {[%clk 0:02:57]} 4.
Nxd4 {[%clk 0:02:48.9]} 4... e5 {[%clk 0:02:50.7]} 5. Nb3 {[%clk 0:02:47.9]}
5... Nf6 {[%clk 0:02:50.4]} 6. Nc3 {[%clk 0:02:47.1]} 6... Bb4 {[%clk
0:02:50.5]} 7. Bd3 {[%clk 0:02:44.9]} 7... d5 {[%clk 0:02:50.3]} 8. exd5 {[%clk
0:02:45]} 8... Nxd5 {[%clk 0:02:51.2]} 9. Bd2 {[%clk 0:02:44.6]} 9... Nxc3
{[%clk 0:02:50.9]} 10. bxc3 {[%clk 0:02:45.5]} 10... Be7 {[%clk 0:02:49.9]} 11.
O-O {[%clk 0:02:46.1]} 11... O-O {[%clk 0:02:37.5]} 12. Qe2 {[%clk 0:02:42.6]}
12... Re8 {[%clk 0:02:33.2]} 13. Rfd1 {[%clk 0:02:38]} 13... Qc7 {[%clk
0:02:29.8]} 14. Be3 {[%clk 0:02:33.2]} 14... b6 {[%clk 0:02:17.2]} 15. Be4
{[%clk 0:02:30.7]} 15... Bb7 {[%clk 0:02:17]} 16. Qg4 {[%clk 0:02:23.8]} 16...
Rad8 {[%clk 0:01:59.1]} 17. h4 {[%clk 0:02:12.6]} 17... Qc8 {[%clk 0:01:31.5]}
18. Qxc8 {[%clk 0:01:58.8]} 18... Rxc8 {[%clk 0:01:31.4]} 19. Rd7 {[%clk
0:01:56.9]} 19... Ba8 {[%clk 0:01:15.2]} 20. Rad1 {[%clk 0:01:43.3]} 20... g6
{[%clk 0:00:29.6]} 21. g3 {[%clk 0:01:26.5]} 21... f5 {[%clk 0:00:14.9]} 22.
Bd5+ {[%clk 0:01:23.5]} 22... Kh8 {[%clk 0:00:15.2]} 23. Bh6 {[%clk 0:00:58]}
23... Red8 {[%clk 0:00:14.5]} 24. Rxd8+ {[%clk 0:00:38.9]} 24... Rxd8 {[%clk
0:00:15.4]} 25. c4 {[%clk 0:00:34.1]} 25... Nb4 {[%clk 0:00:12.1]} 26. c3 {[%clk
0:00:18.9]} 26... Nxd5 {[%clk 0:00:11.6]} 27. cxd5 {[%clk 0:00:19.8]} 27... Rxd5
{[%clk 0:00:12.2]} 28. Rc1 {[%clk 0:00:18.7]} 28... Kg8 {[%clk 0:00:09.7]} 29.
c4 {[%clk 0:00:16.1]} 29... Rd7 {[%clk 0:00:07.6]} 30. Be3 {[%clk 0:00:16.4]}
30... Kf7 {[%clk 0:00:06.7]} 31. c5 {[%clk 0:00:14.1]} 31... bxc5 {[%clk
0:00:07.2]} 32. Bxc5 {[%clk 0:00:10.3]} 32... Bd5 {[%clk 0:00:03.7]} 33. Bxe7
{[%clk 0:00:09.1]} 33... Kxe7 {[%clk 0:00:04.6]} 34. Nc5 {[%clk 0:00:07.2]}
34... Rc7 {[%clk 0:00:05.2]} 35. Nd3 {[%clk 0:00:06.6]} 35... Rxc1+ {[%clk
0:00:04.2]} 36. Nxc1 {[%clk 0:00:07.5]} 36... Bc4 {[%clk 0:00:05]} 37. Kg2
{[%clk 0:00:06.8]} 37... Kd6 {[%clk 0:00:05.6]} 38. Kf3 {[%clk 0:00:07]} 38...
Kc5 {[%clk 0:00:06.1]} 39. Ke3 {[%clk 0:00:07.6]} 39... Kb4 {[%clk 0:00:06.5]}
40. Kd2 {[%clk 0:00:07.5]} 40... Ka3 {[%clk 0:00:06.5]} 41. Kc3 {[%clk
0:00:07.8]} 41... Bxa2 {[%clk 0:00:05.9]} 42. Nxa2 {[%clk 0:00:03.7]} 42... Kxa2
{[%clk 0:00:05.9]} 43. Kb4 {[%clk 0:00:04.6]} 43... Kb2 {[%clk 0:00:06.3]} 44.
Ka5 {[%clk 0:00:05.5]} 44... Kc3 {[%clk 0:00:06.8]} 45. Ka6 {[%clk 0:00:06.4]}
45... Kd3 {[%clk 0:00:07.4]} 46. Kxa7 {[%clk 0:00:07.3]} 46... Ke2 {[%clk
0:00:08]} 47. Kb6 {[%clk 0:00:08.2]} 47... Kxf2 {[%clk 0:00:08.4]} 48. Kc5
{[%clk 0:00:09.1]} 48... e4 {[%clk 0:00:08.7]} 49. Kd4 {[%clk 0:00:10]} 49... e3
{[%clk 0:00:09.3]} 0-1

[Event "*** Titled Tuesday Blitz"]
[Site "Chess.com"]
[Date "2021.04.27"]
[Round "5"]
[White "Diaschess88"]
[Black "Sjakkerntobi"]
[Result "1-0"]
[WhiteElo "2561"]
[BlackElo "2381"]
[TimeControl "180+1"]
[EndTime "10:56:47 PDT"]
[Termination "Diaschess88 won on time"]

1. d4 {[%clk 0:03:00.9]} 1... e6 {[%clk 0:02:56.2]} 2. c4 {[%clk 0:03:00]} 2...
Nf6 {[%clk 0:02:56.8]} 3. Nc3 {[%clk 0:02:49.6]} 3... c5 {[%clk 0:02:56.8]} 4.
d5 {[%clk 0:02:48.4]} 4... exd5 {[%clk 0:02:57.7]} 5. cxd5 {[%clk 0:02:49.1]}
5... d6 {[%clk 0:02:57.8]} 6. e4 {[%clk 0:02:50]} 6... g6 {[%clk 0:02:58.7]} 7.
f3 {[%clk 0:02:50.4]} 7... Bg7 {[%clk 0:02:58.5]} 8. Nge2 {[%clk 0:02:51.3]}
8... h5 {[%clk 0:02:55.9]} 9. Ng3 {[%clk 0:02:52.2]} 9... h4 {[%clk 0:02:56]}
10. Nge2 {[%clk 0:02:51.4]} 10... Nh5 {[%clk 0:02:55.5]} 11. Be3 {[%clk
0:02:50.3]} 11... Nd7 {[%clk 0:02:44.8]} 12. Qd2 {[%clk 0:02:46.4]} 12... Ne5
{[%clk 0:02:42]} 13. h3 {[%clk 0:02:44.7]} 13... Nc4 {[%clk 0:02:38.9]} 14. Qc1
{[%clk 0:02:43.4]} 14... Nxe3 {[%clk 0:02:39.1]} 15. Qxe3 {[%clk 0:02:44.3]}
15... Bd7 {[%clk 0:02:23.7]} 16. f4 {[%clk 0:02:41.6]} 16... Qe7 {[%clk
0:02:21.5]} 17. O-O-O {[%clk 0:02:32.2]} 17... f5 {[%clk 0:02:19.8]} 18. e5
{[%clk 0:02:31]} 18... dxe5 {[%clk 0:02:20.7]} 19. d6 {[%clk 0:02:31]} 19... Qf7
{[%clk 0:02:17.5]} 20. Nd5 {[%clk 0:02:30.4]} 20... O-O {[%clk 0:02:12.5]} 21.
fxe5 {[%clk 0:02:28.7]} 21... Be6 {[%clk 0:02:08.6]} 22. Ne7+ {[%clk 0:02:23.8]}
22... Kh7 {[%clk 0:02:08.3]} 23. Kb1 {[%clk 0:01:53.6]} 23... Bxa2+ {[%clk
0:02:05.1]} 24. Ka1 {[%clk 0:01:53.7]} 24... Bb3 {[%clk 0:01:50.4]} 25. Rc1
{[%clk 0:01:44.7]} 25... Bh6 {[%clk 0:01:40.5]} 26. Qf2 {[%clk 0:01:43.7]} 26...
Bxc1 {[%clk 0:01:21.5]} 27. Nxc1 {[%clk 0:01:44.6]} 27... Be6 {[%clk 0:01:05]}
28. Qxh4 {[%clk 0:01:42.1]} 28... Kg7 {[%clk 0:01:05.5]} 29. g4 {[%clk
0:01:34.8]} 29... fxg4 {[%clk 0:00:36.8]} 30. hxg4 {[%clk 0:01:35.7]} 30... Qf4
{[%clk 0:00:30.8]} 31. Bd3 {[%clk 0:01:07.9]} 31... c4 {[%clk 0:00:19.7]} 32.
Bc2 {[%clk 0:01:02.1]} 32... Qxg4 {[%clk 0:00:17.1]} 33. Qxg4 {[%clk 0:00:59]}
33... Bxg4 {[%clk 0:00:18]} 34. Rg1 {[%clk 0:00:59.5]} 34... Rf4 {[%clk
0:00:18.1]} 35. Bxg6 {[%clk 0:00:41.3]} 35... Kh6 {[%clk 0:00:15]} 36. Bc2
{[%clk 0:00:27]} 36... Kg5 {[%clk 0:00:10.2]} 37. Ne2 {[%clk 0:00:22.2]} 37...
Rf2 {[%clk 0:00:06.7]} 38. Nd4 {[%clk 0:00:19.6]} 38... Kf4 {[%clk 0:00:03.3]}
39. Bg6 {[%clk 0:00:15]} 39... Ng3 {[%clk 0:00:03.1]} 40. e6 {[%clk 0:00:13.6]}
40... Rf1+ {[%clk 0:00:01.9]} 41. Rxf1+ {[%clk 0:00:13.3]} 41... Nxf1 {[%clk
0:00:02.8]} 42. d7 {[%clk 0:00:13.1]} 42... Rd8 {[%clk 0:00:02.4]} 43. Nd5+
{[%clk 0:00:11.2]} 43... Ke5 {[%clk 0:00:01.2]} 44. e7 {[%clk 0:00:12]} 1-0

[Event "*** Titled Tuesday Blitz"]
[Site "Chess.com"]
[Date "2021.04.27"]
[Round "5"]
[White "GMJustin"]
[Black "VladaSviridova"]
[Result "1-0"]
[WhiteElo "2297"]
[BlackElo "2277"]
[TimeControl "180+1"]
[EndTime "10:56:47 PDT"]
[Termination "GMJustin won on time"]

1. d4 {[%clk 0:02:32.7]} 1... d5 {[%clk 0:02:59.6]} 2. c4 {[%clk 0:02:32.3]}
2... c6 {[%clk 0:02:59.5]} 3. Nf3 {[%clk 0:02:31.5]} 3... Nf6 {[%clk 0:02:59]}
4. Qc2 {[%clk 0:02:31]} 4... dxc4 {[%clk 0:02:58.5]} 5. e4 {[%clk 0:02:29.6]}
5... b5 {[%clk 0:02:56.8]} 6. b3 {[%clk 0:02:24.9]} 6... cxb3 {[%clk 0:02:55.8]}
7. axb3 {[%clk 0:02:25.3]} 7... e6 {[%clk 0:02:53.8]} 8. Bd2 {[%clk 0:02:19.1]}
8... a5 {[%clk 0:02:50.5]} 9. Bd3 {[%clk 0:02:15.4]} 9... Bb7 {[%clk 0:02:49.9]}
10. O-O {[%clk 0:02:13.2]} 10... Be7 {[%clk 0:02:49.3]} 11. Rc1 {[%clk
0:02:05.5]} 11... h6 {[%clk 0:02:44.8]} 12. Nc3 {[%clk 0:01:44.3]} 12... Na6
{[%clk 0:02:44.1]} 13. e5 {[%clk 0:01:37.6]} 13... Nb4 {[%clk 0:02:39.1]} 14.
exf6 {[%clk 0:01:30.6]} 14... Nxc2 {[%clk 0:02:37.8]} 15. fxe7 {[%clk
0:01:30.4]} 15... Qxe7 {[%clk 0:02:36.9]} 16. Rxc2 {[%clk 0:01:30.1]} 16... O-O
{[%clk 0:02:34.4]} 17. Ne4 {[%clk 0:01:24.8]} 17... b4 {[%clk 0:02:00.3]} 18.
Nc5 {[%clk 0:01:22.1]} 18... Rfd8 {[%clk 0:01:56.3]} 19. Be3 {[%clk 0:00:53.6]}
19... g5 {[%clk 0:01:31.5]} 20. Ne5 {[%clk 0:00:48.5]} 20... Rdc8 {[%clk
0:00:54.1]} 21. g4 {[%clk 0:00:42.2]} 21... Kg7 {[%clk 0:00:53]} 22. Nc4 {[%clk
0:00:33.4]} 22... Rd8 {[%clk 0:00:49]} 23. Nxa5 {[%clk 0:00:26]} 23... Bc8
{[%clk 0:00:44.3]} 24. Rca2 {[%clk 0:00:23.4]} 24... Bd7 {[%clk 0:00:42.5]} 25.
Be4 {[%clk 0:00:14.7]} 25... Be8 {[%clk 0:00:36.7]} 26. Nxc6 {[%clk 0:00:13.7]}
26... Bxc6 {[%clk 0:00:35.6]} 27. Bxc6 {[%clk 0:00:14]} 27... Rxa2 {[%clk
0:00:35.2]} 28. Rxa2 {[%clk 0:00:14.9]} 28... Qc7 {[%clk 0:00:32.9]} 29. Be4
{[%clk 0:00:14.5]} 29... e5 {[%clk 0:00:23.9]} 30. d5 {[%clk 0:00:12.3]} 30...
Qc8 {[%clk 0:00:16.5]} 31. Ra7 {[%clk 0:00:10.9]} 31... Qxg4+ {[%clk 0:00:14.5]}
32. Kf1 {[%clk 0:00:10.2]} 32... Qd1+ {[%clk 0:00:14.3]} 33. Kg2 {[%clk
0:00:10.2]} 33... Rxd5 {[%clk 0:00:12.7]} 34. Bxd5 {[%clk 0:00:08.8]} 34...
Qxd5+ {[%clk 0:00:12.8]} 35. f3 {[%clk 0:00:08.9]} 35... g4 {[%clk 0:00:12.5]}
36. Ne4 {[%clk 0:00:08.3]} 36... gxf3+ {[%clk 0:00:12.2]} 37. Kxf3 {[%clk
0:00:08.3]} 37... Kg6 {[%clk 0:00:11.8]} 38. Ra6+ {[%clk 0:00:06]} 38... Kh7
{[%clk 0:00:10.2]} 39. Rf6 {[%clk 0:00:05.7]} 39... Kg7 {[%clk 0:00:09]} 40. Rf5
{[%clk 0:00:04.9]} 40... f6 {[%clk 0:00:08.5]} 41. Rxf6 {[%clk 0:00:04.9]} 41...
Qxb3 {[%clk 0:00:08.5]} 42. Rb6 {[%clk 0:00:04.3]} 42... Qd1+ {[%clk 0:00:08]}
43. Kf2 {[%clk 0:00:03.8]} 43... Qc2+ {[%clk 0:00:08.2]} 44. Kf3 {[%clk
0:00:03.9]} 44... b3 {[%clk 0:00:08.6]} 45. Bxh6+ {[%clk 0:00:02.3]} 45... Kh7
{[%clk 0:00:07.8]} 46. Ng5+ {[%clk 0:00:02.1]} 1-0

[Event "*** Titled Tuesday Blitz"]
[Site "Chess.com"]
[Date "2021.04.27"]
[Round "5"]
[White "woodhy"]
[Black "Srisshhhtea"]
[Result "0-1"]
[WhiteElo "2482"]
[BlackElo "2346"]
[TimeControl "180+1"]
[EndTime "10:56:49 PDT"]
[Termination "Srisshhhtea won by checkmate"]

1. e4 {[%clk 0:02:15.3]} 1... e6 {[%clk 0:02:58.5]} 2. d4 {[%clk 0:02:14.9]}
2... d5 {[%clk 0:02:58.7]} 3. e5 {[%clk 0:02:15.4]} 3... c5 {[%clk 0:02:57.9]}
4. c3 {[%clk 0:02:15.4]} 4... Qb6 {[%clk 0:02:58.2]} 5. Nf3 {[%clk 0:02:13.1]}
5... Bd7 {[%clk 0:02:58.6]} 6. a4 {[%clk 0:02:02.5]} 6... cxd4 {[%clk 0:02:55]}
7. Nxd4 {[%clk 0:01:57.3]} 7... Nc6 {[%clk 0:02:50.4]} 8. Nxc6 {[%clk
0:01:55.8]} 8... bxc6 {[%clk 0:02:47.5]} 9. a5 {[%clk 0:01:53.7]} 9... Qc7
{[%clk 0:02:45.8]} 10. f4 {[%clk 0:01:49.5]} 10... Ne7 {[%clk 0:02:22.7]} 11.
Bd3 {[%clk 0:01:48.5]} 11... Ng6 {[%clk 0:02:21.7]} 12. O-O {[%clk 0:01:47.4]}
12... c5 {[%clk 0:02:14.1]} 13. Be3 {[%clk 0:01:41.2]} 13... c4 {[%clk
0:02:12.8]} 14. Bc2 {[%clk 0:01:41.1]} 14... Bc5 {[%clk 0:02:12.5]} 15. Bd4
{[%clk 0:01:38.7]} 15... Ne7 {[%clk 0:02:01.4]} 16. Kh1 {[%clk 0:01:37.6]} 16...
Nf5 {[%clk 0:01:48.8]} 17. Bxf5 {[%clk 0:01:36.5]} 17... exf5 {[%clk 0:01:49.4]}
18. Bxc5 {[%clk 0:01:35.8]} 18... Qxc5 {[%clk 0:01:50.3]} 19. Nd2 {[%clk
0:01:35.2]} 19... Rb8 {[%clk 0:01:04.2]} 20. Ra2 {[%clk 0:01:29.3]} 20... d4
{[%clk 0:01:02.2]} 21. Nf3 {[%clk 0:01:23.3]} 21... d3 {[%clk 0:00:58.9]} 22.
Nd4 {[%clk 0:01:23.4]} 22... O-O {[%clk 0:00:58.8]} 23. Qh5 {[%clk 0:01:10.4]}
23... g6 {[%clk 0:00:42.4]} 24. Qh6 {[%clk 0:01:08.3]} 24... f6 {[%clk
0:00:36.5]} 25. e6 {[%clk 0:01:05]} 25... Bc8 {[%clk 0:00:34.5]} 26. Re1 {[%clk
0:00:53.9]} 26... Re8 {[%clk 0:00:32.3]} 27. Qh4 {[%clk 0:00:50.2]} 27... Kg7
{[%clk 0:00:27]} 28. Qg3 {[%clk 0:00:46.6]} 28... a6 {[%clk 0:00:19.6]} 29. h4
{[%clk 0:00:32.2]} 29... Rb7 {[%clk 0:00:19.7]} 30. h5 {[%clk 0:00:28.9]} 30...
Rbe7 {[%clk 0:00:20]} 31. Qh4 {[%clk 0:00:28.1]} 31... Bxe6 {[%clk 0:00:18.7]}
32. h6+ {[%clk 0:00:28]} 32... Kf7 {[%clk 0:00:18.4]} 33. Qxf6+ {[%clk
0:00:28.6]} 33... Kxf6 {[%clk 0:00:18.2]} 34. b4 {[%clk 0:00:26.4]} 34... cxb3
{[%clk 0:00:17.4]} 35. Raa1 {[%clk 0:00:22.1]} 35... Bc4 {[%clk 0:00:15.8]} 36.
Red1 {[%clk 0:00:20.3]} 36... b2 {[%clk 0:00:14.8]} 37. Rab1 {[%clk 0:00:19.2]}
37... Rb8 {[%clk 0:00:15.7]} 38. Rd2 {[%clk 0:00:16.6]} 38... Qa3 {[%clk
0:00:15.9]} 39. Nc6 {[%clk 0:00:15.3]} 39... Qxc3 {[%clk 0:00:15.3]} 40. Rdd1
{[%clk 0:00:13.8]} 40... Ba2 {[%clk 0:00:15]} 41. Nxe7 {[%clk 0:00:11.9]} 41...
Kxe7 {[%clk 0:00:15.1]} 42. Re1+ {[%clk 0:00:10.3]} 42... Kf6 {[%clk 0:00:14.9]}
43. Rbd1 {[%clk 0:00:09.7]} 43... b1=Q {[%clk 0:00:14.3]} 44. Rxb1 {[%clk
0:00:09.8]} 44... Rxb1 {[%clk 0:00:14.6]} 45. Rxb1 {[%clk 0:00:08.8]} 45... Bxb1
{[%clk 0:00:15.5]} 46. Kh2 {[%clk 0:00:09.2]} 46... Qe1 {[%clk 0:00:16.1]} 47.
Kh3 {[%clk 0:00:08.9]} 47... d2 {[%clk 0:00:15.8]} 48. g4 {[%clk 0:00:08.7]}
48... d1=Q {[%clk 0:00:16]} 49. g5+ {[%clk 0:00:07.4]} 49... Ke6 {[%clk
0:00:14.7]} 50. Kg2 {[%clk 0:00:08.3]} 50... Qf1+ {[%clk 0:00:14.3]} 51. Kg3
{[%clk 0:00:08.1]} 51... Qg4+ {[%clk 0:00:14.4]} 52. Kh2 {[%clk 0:00:08.1]}
52... Qfg2# {[%clk 0:00:15]} 0-1

[Event "*** Titled Tuesday Blitz"]
[Site "Chess.com"]
[Date "2021.04.27"]
[Round "5"]
[White "Dinamo81"]
[Black "sergiochess83"]
[Result "1/2-1/2"]
[WhiteElo "2722"]
[BlackElo "2881"]
[TimeControl "180+1"]
[EndTime "10:56:55 PDT"]
[Termination "Game drawn by stalemate"]

1. d4 {[%clk 0:03:00.9]} 1... Nf6 {[%clk 0:02:59.2]} 2. Bf4 {[%clk 0:03:01.1]}
2... c5 {[%clk 0:02:58.1]} 3. e3 {[%clk 0:03:01]} 3... Nd5 {[%clk 0:02:56.4]} 4.
Bg3 {[%clk 0:02:59.7]} 4... Qb6 {[%clk 0:02:55.8]} 5. b3 {[%clk 0:02:58.3]} 5...
cxd4 {[%clk 0:02:55.2]} 6. exd4 {[%clk 0:02:57.8]} 6... Nf6 {[%clk 0:02:55.3]}
7. c4 {[%clk 0:02:42.3]} 7... d5 {[%clk 0:02:35.6]} 8. c5 {[%clk 0:02:35.1]}
8... Qb4+ {[%clk 0:02:17.2]} 9. Qd2 {[%clk 0:02:33.5]} 9... Nc6 {[%clk
0:02:17.8]} 10. Nf3 {[%clk 0:02:21.1]} 10... g6 {[%clk 0:02:02.4]} 11. Nc3
{[%clk 0:02:16]} 11... Ne4 {[%clk 0:01:49.1]} 12. Nxe4 {[%clk 0:02:06.4]} 12...
dxe4 {[%clk 0:01:49.1]} 13. Ne5 {[%clk 0:01:49.9]} 13... Qxd4 {[%clk 0:01:22.9]}
14. Qxd4 {[%clk 0:01:25.1]} 14... Nxd4 {[%clk 0:01:22.5]} 15. Rd1 {[%clk
0:01:25.5]} 15... f6 {[%clk 0:00:54.2]} 16. Rxd4 {[%clk 0:01:20.5]} 16... fxe5
{[%clk 0:00:54.6]} 17. Bxe5 {[%clk 0:01:16.7]} 17... Rg8 {[%clk 0:00:54.9]} 18.
Rxe4 {[%clk 0:00:57.7]} 18... Bf5 {[%clk 0:00:52.6]} 19. Bb5+ {[%clk 0:00:52.8]}
19... Kf7 {[%clk 0:00:51.6]} 20. Rd4 {[%clk 0:00:37]} 20... Rc8 {[%clk
0:00:43.8]} 21. b4 {[%clk 0:00:33.8]} 21... a5 {[%clk 0:00:29.9]} 22. a3 {[%clk
0:00:33.2]} 22... axb4 {[%clk 0:00:29.7]} 23. axb4 {[%clk 0:00:34.1]} 23... b6
{[%clk 0:00:20.4]} 24. Bc4+ {[%clk 0:00:28.4]} 24... e6 {[%clk 0:00:18.8]} 25.
Rd7+ {[%clk 0:00:26.7]} 25... Be7 {[%clk 0:00:18.6]} 26. Bd6 {[%clk 0:00:26.8]}
26... Rge8 {[%clk 0:00:18.6]} 27. Ke2 {[%clk 0:00:24.9]} 27... bxc5 {[%clk
0:00:19]} 28. bxc5 {[%clk 0:00:23.9]} 28... Kf6 {[%clk 0:00:19.5]} 29. Bd3
{[%clk 0:00:12]} 29... Bxd6 {[%clk 0:00:18]} 30. cxd6 {[%clk 0:00:11]} 30...
Bxd3+ {[%clk 0:00:13.5]} 31. Kxd3 {[%clk 0:00:11.5]} 31... Red8 {[%clk
0:00:14.3]} 32. Rxd8 {[%clk 0:00:09.8]} 32... Rxd8 {[%clk 0:00:14.1]} 33. Ke2
{[%clk 0:00:10.4]} 33... Rxd6 {[%clk 0:00:14.3]} 34. Rd1 {[%clk 0:00:11]} 34...
Rxd1 {[%clk 0:00:09.5]} 35. Kxd1 {[%clk 0:00:11]} 35... Ke5 {[%clk 0:00:09.9]}
36. Ke2 {[%clk 0:00:11.4]} 36... Ke4 {[%clk 0:00:09.9]} 37. f3+ {[%clk
0:00:08.8]} 37... Kd4 {[%clk 0:00:10.3]} 38. Kd2 {[%clk 0:00:08.3]} 38... e5
{[%clk 0:00:10.7]} 39. Ke2 {[%clk 0:00:08.3]} 39... g5 {[%clk 0:00:10.2]} 40.
Kd2 {[%clk 0:00:06.9]} 40... h5 {[%clk 0:00:09.6]} 41. Ke2 {[%clk 0:00:07]}
41... e4 {[%clk 0:00:07.4]} 42. fxe4 {[%clk 0:00:06.3]} 42... Kxe4 {[%clk
0:00:07.7]} 43. Kf2 {[%clk 0:00:06.6]} 43... Kf4 {[%clk 0:00:06.7]} 44. Ke2
{[%clk 0:00:06.6]} 44... h4 {[%clk 0:00:07.1]} 45. Kf2 {[%clk 0:00:06.8]} 45...
Ke4 {[%clk 0:00:06]} 46. Ke2 {[%clk 0:00:06.5]} 46... g4 {[%clk 0:00:05.1]} 47.
h3 {[%clk 0:00:05.6]} 47... g3 {[%clk 0:00:04.3]} 48. Kf1 {[%clk 0:00:05.1]}
48... Kd3 {[%clk 0:00:03.6]} 49. Kg1 {[%clk 0:00:06]} 49... Ke2 {[%clk
0:00:03.8]} 50. Kh1 {[%clk 0:00:06.9]} 50... Kf1 {[%clk 0:00:03.3]} 1/2-1/2